[Event "Late-Titled-Tuesday-Blitz-March-05-2024"]
[Site "Chess.com"]
[Date "2024.03.05"]
[Round "6"]
[White "Azerichess"]
[Black "MagnusCarlsen"]
[Result "1/2-1/2"]
[WhiteElo "3062"]
[BlackElo "3255"]
[TimeControl "180+1"]
[EndTime "15:06:28 PST"]
[Termination "Game drawn - insufficient material"]

1. d4 {[%clk 0:03:00.9]} 1... g6 {[%clk 0:02:46.9]} 2. e4 {[%clk 0:02:59.9]}
2... Bg7 {[%clk 0:02:47.6]} 3. Nf3 {[%clk 0:02:59.4]} 3... d6 {[%clk 0:02:47.9]}
4. Bc4 {[%clk 0:02:58.1]} 4... Nc6 {[%clk 0:02:48.1]} 5. O-O {[%clk 0:02:55.1]}
5... Nf6 {[%clk 0:02:46.1]} 6. d5 {[%clk 0:02:54.3]} 6... Nb8 {[%clk 0:02:46.1]}
7. Re1 {[%clk 0:02:53.5]} 7... O-O {[%clk 0:02:45.5]} 8. h3 {[%clk 0:02:52.9]}
8... c6 {[%clk 0:02:45]} 9. Bf1 {[%clk 0:02:47.8]} 9... a5 {[%clk 0:02:42.6]}
10. c4 {[%clk 0:02:47.5]} 10... Na6 {[%clk 0:02:41.7]} 11. Nc3 {[%clk
0:02:47.6]} 11... Nc5 {[%clk 0:02:42.1]} 12. Bf4 {[%clk 0:02:34.6]} 12... Re8
{[%clk 0:02:38.2]} 13. Qd2 {[%clk 0:02:29.7]} 13... a4 {[%clk 0:02:32.7]} 14.
Rad1 {[%clk 0:02:28.5]} 14... Qa5 {[%clk 0:02:31.2]} 15. Bh6 {[%clk 0:02:19.8]}
15... Bxh6 {[%clk 0:02:26.1]} 16. Qxh6 {[%clk 0:02:20.7]} 16... a3 {[%clk
0:02:25.6]} 17. e5 {[%clk 0:01:56.9]} 17... dxe5 {[%clk 0:02:22.5]} 18. dxc6
{[%clk 0:01:44.7]} 18... axb2 {[%clk 0:02:20.2]} 19. Qd2 {[%clk 0:01:01.9]}
19... e4 {[%clk 0:02:06.5]} 20. Nd4 {[%clk 0:00:58.7]} 20... e5 {[%clk
0:01:51.9]} 21. cxb7 {[%clk 0:00:57.6]} 21... Bxb7 {[%clk 0:01:20.7]} 22. Nb3
{[%clk 0:00:57.4]} 22... Qa3 {[%clk 0:01:21.1]} 23. Nxc5 {[%clk 0:00:53.8]}
23... Qxc5 {[%clk 0:01:21.1]} 24. Qxb2 {[%clk 0:00:54.2]} 24... Bc6 {[%clk
0:01:21.8]} 25. Qd2 {[%clk 0:00:45.2]} 25... Re6 {[%clk 0:01:14.4]} 26. Qe3
{[%clk 0:00:43.2]} 26... Qxe3 {[%clk 0:01:13.4]} 27. Rxe3 {[%clk 0:00:44.1]}
27... Kg7 {[%clk 0:01:07.1]} 28. g4 {[%clk 0:00:42.4]} 28... h6 {[%clk
0:01:06.7]} 29. Bg2 {[%clk 0:00:41.5]} 29... Ra3 {[%clk 0:01:06.8]} 30. Nxe4
{[%clk 0:00:20.5]} 30... Rxe3 {[%clk 0:01:03.5]} 31. Nc5 {[%clk 0:00:20.8]}
31... Re7 {[%clk 0:00:31.6]} 32. fxe3 {[%clk 0:00:20.4]} 32... Bxg2 {[%clk
0:00:29.9]} 33. Kxg2 {[%clk 0:00:21.3]} 33... Rc7 {[%clk 0:00:30.1]} 34. Nd3
{[%clk 0:00:21.7]} 34... e4 {[%clk 0:00:28.4]} 35. Ne5 {[%clk 0:00:21]} 35...
Rc5 {[%clk 0:00:28.5]} 36. Nd7 {[%clk 0:00:21.1]} 36... Rxc4 {[%clk 0:00:28.7]}
37. Nxf6 {[%clk 0:00:20.6]} 37... Kxf6 {[%clk 0:00:29.6]} 38. Rd4 {[%clk
0:00:12.5]} 38... Rc2+ {[%clk 0:00:29.6]} 39. Kg3 {[%clk 0:00:12.8]} 39... Ke5
{[%clk 0:00:29.6]} 40. Rd7 {[%clk 0:00:12.8]} 40... Re2 {[%clk 0:00:25.6]} 41.
Re7+ {[%clk 0:00:11.3]} 41... Kd5 {[%clk 0:00:25.4]} 42. Rxf7 {[%clk 0:00:08.7]}
42... Rxe3+ {[%clk 0:00:25.7]} 43. Kg2 {[%clk 0:00:09.3]} 43... Ra3 {[%clk
0:00:17.8]} 44. Rf6 {[%clk 0:00:09.7]} 44... Rxa2+ {[%clk 0:00:17.2]} 45. Kg3
{[%clk 0:00:09.6]} 45... Ra3+ {[%clk 0:00:17]} 46. Kg2 {[%clk 0:00:10.1]} 46...
g5 {[%clk 0:00:15.8]} 47. Rxh6 {[%clk 0:00:10.4]} 47... Kd4 {[%clk 0:00:16.1]}
48. Rf6 {[%clk 0:00:09]} 48... Ra2+ {[%clk 0:00:13.5]} 49. Kg3 {[%clk
0:00:09.3]} 49... e3 {[%clk 0:00:14.1]} 50. Re6 {[%clk 0:00:08.4]} 50... Ra1
{[%clk 0:00:12.2]} 51. h4 {[%clk 0:00:07.7]} 51... Rg1+ {[%clk 0:00:09.1]} 52.
Kf3 {[%clk 0:00:08.2]} 52... Rf1+ {[%clk 0:00:07.3]} 53. Kg3 {[%clk 0:00:08.7]}
53... gxh4+ {[%clk 0:00:05.8]} 54. Kxh4 {[%clk 0:00:09.6]} 54... Kd3 {[%clk
0:00:05.7]} 55. g5 {[%clk 0:00:09.9]} 55... e2 {[%clk 0:00:05.9]} 56. Kh5 {[%clk
0:00:09.5]} 56... e1=Q {[%clk 0:00:04]} 57. Rxe1 {[%clk 0:00:09.5]} 57... Rxe1
{[%clk 0:00:04.9]} 58. Kg6 {[%clk 0:00:10.2]} 58... Ke4 {[%clk 0:00:04.8]} 59.
Kf6 {[%clk 0:00:10.4]} 59... Kd5 {[%clk 0:00:02.6]} 60. g6 {[%clk 0:00:10.5]}
60... Rf1+ {[%clk 0:00:03.2]} 61. Ke7 {[%clk 0:00:10.6]} 61... Rg1 {[%clk
0:00:03.4]} 62. Kf7 {[%clk 0:00:11]} 62... Rf1+ {[%clk 0:00:03]} 63. Ke7 {[%clk
0:00:10.3]} 63... Ke5 {[%clk 0:00:03.6]} 64. g7 {[%clk 0:00:10.6]} 64... Rg1
{[%clk 0:00:04.3]} 65. Kf7 {[%clk 0:00:11.1]} 65... Rxg7+ {[%clk 0:00:04.7]} 66.
Kxg7 {[%clk 0:00:11.4]} 1/2-1/2

[Event "Late-Titled-Tuesday-Blitz-March-05-2024"]
[Site "Chess.com"]
[Date "2024.03.05"]
[Round "6"]
[White "FabianoCaruana"]
[Black "VladimirKramnik"]
[Result "0-1"]
[WhiteElo "3047"]
[BlackElo "2986"]
[TimeControl "180+1"]
[EndTime "15:06:33 PST"]
[Termination "VladimirKramnik won by resignation"]

1. e4 {[%clk 0:02:59.8]} 1... e6 {[%clk 0:03:00.2]} 2. d4 {[%clk 0:02:59.3]}
2... d5 {[%clk 0:03:00.9]} 3. Nc3 {[%clk 0:02:59.7]} 3... Nf6 {[%clk 0:03:01]}
4. e5 {[%clk 0:02:58.8]} 4... Nfd7 {[%clk 0:03:00.7]} 5. Nce2 {[%clk 0:02:57]}
5... c5 {[%clk 0:03:00]} 6. c3 {[%clk 0:02:57.5]} 6... Nc6 {[%clk 0:02:59.6]} 7.
f4 {[%clk 0:02:58.2]} 7... Be7 {[%clk 0:02:56.7]} 8. Nf3 {[%clk 0:02:58.2]} 8...
O-O {[%clk 0:02:55.1]} 9. a3 {[%clk 0:02:58.4]} 9... f6 {[%clk 0:02:49.8]} 10.
g3 {[%clk 0:02:35.8]} 10... cxd4 {[%clk 0:02:37.5]} 11. Nexd4 {[%clk 0:02:33.6]}
11... Nxd4 {[%clk 0:01:52.9]} 12. cxd4 {[%clk 0:02:32.5]} 12... fxe5 {[%clk
0:01:51.1]} 13. fxe5 {[%clk 0:02:25.8]} 13... Qb6 {[%clk 0:01:51]} 14. Be2
{[%clk 0:02:04.7]} 14... Nb8 {[%clk 0:01:46.7]} 15. b4 {[%clk 0:01:46.9]} 15...
Bd7 {[%clk 0:01:42.1]} 16. O-O {[%clk 0:01:44.8]} 16... Bb5 {[%clk 0:01:37.6]}
17. Bxb5 {[%clk 0:01:41.8]} 17... Qxb5 {[%clk 0:01:37.7]} 18. a4 {[%clk
0:01:35.7]} 18... Qe8 {[%clk 0:01:34.1]} 19. Bd2 {[%clk 0:01:10.2]} 19... Nd7
{[%clk 0:01:31.2]} 20. a5 {[%clk 0:01:09.4]} 20... a6 {[%clk 0:01:26.2]} 21. Qb3
{[%clk 0:01:03.9]} 21... Nb8 {[%clk 0:01:16.2]} 22. Rac1 {[%clk 0:01:00.3]}
22... Nc6 {[%clk 0:01:13.6]} 23. b5 {[%clk 0:00:53.4]} 23... axb5 {[%clk
0:01:13]} 24. Qxb5 {[%clk 0:00:54.3]} 24... Nxe5 {[%clk 0:00:49.7]} 25. Qxe8
{[%clk 0:00:53.9]} 25... Nxf3+ {[%clk 0:00:49.7]} 26. Rxf3 {[%clk 0:00:54.5]}
26... Raxe8 {[%clk 0:00:43.5]} 27. Rb3 {[%clk 0:00:38.3]} 27... Bf6 {[%clk
0:00:40.7]} 28. Be3 {[%clk 0:00:38.5]} 28... Rf7 {[%clk 0:00:38.5]} 29. Kg2
{[%clk 0:00:36.4]} 29... h5 {[%clk 0:00:35.5]} 30. Rb6 {[%clk 0:00:25]} 30... e5
{[%clk 0:00:33.5]} 31. dxe5 {[%clk 0:00:23.1]} 31... Rxe5 {[%clk 0:00:34.1]} 32.
Rb3 {[%clk 0:00:17.9]} 32... d4 {[%clk 0:00:30.5]} 33. Bxd4 {[%clk 0:00:13.2]}
33... Re2+ {[%clk 0:00:30.4]} 34. Kf3 {[%clk 0:00:13.4]} 34... Rxh2 {[%clk
0:00:29.4]} 35. Bxf6 {[%clk 0:00:13.4]} 35... Rxf6+ {[%clk 0:00:29.6]} 36. Ke4
{[%clk 0:00:12.3]} 36... Re2+ {[%clk 0:00:24.2]} 37. Kd3 {[%clk 0:00:12.2]}
37... Rg2 {[%clk 0:00:19.6]} 38. Ke4 {[%clk 0:00:11.9]} 38... Re2+ {[%clk
0:00:13.6]} 39. Kd3 {[%clk 0:00:12.1]} 39... Rfe6 {[%clk 0:00:13.5]} 40. Rxb7
{[%clk 0:00:09.8]} 40... R2e3+ {[%clk 0:00:13.2]} 41. Kd4 {[%clk 0:00:10.3]}
41... Rxg3 {[%clk 0:00:13.6]} 42. Rc8+ {[%clk 0:00:06.9]} 42... Kh7 {[%clk
0:00:12.8]} 43. Rc5 {[%clk 0:00:07.6]} 43... Rg4+ {[%clk 0:00:08.1]} 44. Kd3
{[%clk 0:00:07.6]} 44... Rd6+ {[%clk 0:00:07.9]} 45. Kc3 {[%clk 0:00:07.6]}
45... Rh6 {[%clk 0:00:06.2]} 46. Rb6 {[%clk 0:00:07.3]} 46... Ra4 {[%clk
0:00:05.3]} 47. Kb3 {[%clk 0:00:06.3]} 47... Ra1 {[%clk 0:00:03]} 48. Kb2 {[%clk
0:00:06.8]} 48... Ra4 {[%clk 0:00:02.8]} 49. Kb3 {[%clk 0:00:07.2]} 49... Ra1
{[%clk 0:00:02.4]} 50. Kb2 {[%clk 0:00:07.7]} 50... Ra4 {[%clk 0:00:02.6]} 51.
Rb7 {[%clk 0:00:07]} 51... h4 {[%clk 0:00:02]} 52. Rcc7 {[%clk 0:00:07.2]} 52...
Rg6 {[%clk 0:00:01.8]} 53. Rc5 {[%clk 0:00:06.3]} 53... Rg2+ {[%clk 0:00:01.5]}
54. Kb3 {[%clk 0:00:06.3]} 54... Rag4 {[%clk 0:00:01.9]} 55. a6 {[%clk
0:00:05.8]} 55... R2g3+ {[%clk 0:00:01.9]} 56. Kc2 {[%clk 0:00:05.4]} 56... Rf3
{[%clk 0:00:02.6]} 57. Kd2 {[%clk 0:00:04.1]} 57... Rg2+ {[%clk 0:00:02.6]} 58.
Ke1 {[%clk 0:00:04.7]} 58... Ra3 {[%clk 0:00:02.9]} 59. Kf1 {[%clk 0:00:04.8]}
59... Rd2 {[%clk 0:00:03.2]} 60. Rh5+ {[%clk 0:00:03.8]} 60... Kg6 {[%clk
0:00:02.7]} 61. Re5 {[%clk 0:00:04.1]} 61... Ra1+ {[%clk 0:00:02.7]} 62. Re1
{[%clk 0:00:04.4]} 62... Rxa6 {[%clk 0:00:03]} 63. Rb4 {[%clk 0:00:04.2]} 63...
Kh5 {[%clk 0:00:03.1]} 64. Kg1 {[%clk 0:00:03.8]} 64... g5 {[%clk 0:00:03.6]}
65. Rb5 {[%clk 0:00:03.1]} 65... Raa2 {[%clk 0:00:04.1]} 66. Kh1 {[%clk
0:00:02.5]} 66... Rh2+ {[%clk 0:00:04.4]} 67. Kg1 {[%clk 0:00:03.1]} 67... Rag2+
{[%clk 0:00:04.4]} 68. Kf1 {[%clk 0:00:03.8]} 68... h3 {[%clk 0:00:04.9]} 69.
Rxg5+ {[%clk 0:00:02.1]} 0-1

[Event "Late-Titled-Tuesday-Blitz-March-05-2024"]
[Site "Chess.com"]
[Date "2024.03.05"]
[Round "6"]
[White "kagg1125"]
[Black "NateSolon"]
[Result "1/2-1/2"]
[WhiteElo "2530"]
[BlackElo "2689"]
[TimeControl "180+1"]
[EndTime "15:07:17 PST"]
[Termination "Game drawn by repetition"]

1. e4 {[%clk 0:03:00.9]} 1... c5 {[%clk 0:02:59.7]} 2. Nf3 {[%clk 0:02:57]} 2...
Nf6 {[%clk 0:02:59.9]} 3. e5 {[%clk 0:02:53.5]} 3... Nd5 {[%clk 0:03:00]} 4. Nc3
{[%clk 0:02:53.7]} 4... e6 {[%clk 0:03:00.4]} 5. Nxd5 {[%clk 0:02:51]} 5... exd5
{[%clk 0:03:01.3]} 6. d4 {[%clk 0:02:51.8]} 6... Nc6 {[%clk 0:03:01.4]} 7. dxc5
{[%clk 0:02:46.5]} 7... Bxc5 {[%clk 0:03:02.3]} 8. Bd3 {[%clk 0:02:46]} 8... d6
{[%clk 0:03:01.2]} 9. exd6 {[%clk 0:02:45.1]} 9... O-O {[%clk 0:03:00.5]} 10.
O-O {[%clk 0:02:40.1]} 10... Qxd6 {[%clk 0:03:00.4]} 11. a3 {[%clk 0:02:27]}
11... h6 {[%clk 0:02:53.2]} 12. b4 {[%clk 0:02:20.3]} 12... Bb6 {[%clk
0:02:52.7]} 13. c4 {[%clk 0:02:20.5]} 13... Qf6 {[%clk 0:02:37.5]} 14. Rb1
{[%clk 0:01:38.2]} 14... dxc4 {[%clk 0:02:37.3]} 15. Bxc4 {[%clk 0:01:35.5]}
15... Rd8 {[%clk 0:02:08.1]} 16. Qb3 {[%clk 0:01:29.9]} 16... Nd4 {[%clk
0:01:59.6]} 17. Nxd4 {[%clk 0:01:29.4]} 17... Bxd4 {[%clk 0:02:00.5]} 18. Be3
{[%clk 0:01:23.7]} 18... Bf5 {[%clk 0:01:57.2]} 19. Rbd1 {[%clk 0:01:19.5]}
19... Bg6 {[%clk 0:01:50.3]} 20. Bxd4 {[%clk 0:01:15]} 20... Rxd4 {[%clk
0:01:51.2]} 21. Rxd4 {[%clk 0:01:15.4]} 21... Qxd4 {[%clk 0:01:51.6]} 22. Rd1
{[%clk 0:01:16.2]} 22... Qf6 {[%clk 0:01:46.6]} 23. h3 {[%clk 0:00:58.8]} 23...
Rd8 {[%clk 0:01:44.9]} 24. Rxd8+ {[%clk 0:00:54.6]} 24... Qxd8 {[%clk
0:01:45.8]} 25. Qe3 {[%clk 0:00:54.9]} 25... b6 {[%clk 0:01:44.8]} 26. Qg3
{[%clk 0:00:47.5]} 26... Kh7 {[%clk 0:01:42.9]} 27. Kh2 {[%clk 0:00:47]} 27...
Qd4 {[%clk 0:01:41.9]} 28. Bb3 {[%clk 0:00:39.8]} 28... Qb2 {[%clk 0:01:37.9]}
29. Bd5 {[%clk 0:00:38.4]} 29... a5 {[%clk 0:01:30]} 30. bxa5 {[%clk 0:00:33]}
30... bxa5 {[%clk 0:01:30.9]} 31. Qf3 {[%clk 0:00:30.8]} 31... f6 {[%clk
0:01:25.6]} 32. g3 {[%clk 0:00:27.5]} 32... Qe5 {[%clk 0:01:19.6]} 33. Ba2
{[%clk 0:00:26.2]} 33... Be4 {[%clk 0:01:18]} 34. Qb3 {[%clk 0:00:24.5]} 34...
Qe8 {[%clk 0:01:06]} 35. h4 {[%clk 0:00:20.2]} 35... Bg6 {[%clk 0:01:04.8]} 36.
Qd5 {[%clk 0:00:19.1]} 36... Be4 {[%clk 0:01:03.3]} 37. Qxa5 {[%clk 0:00:17.1]}
37... Qe7 {[%clk 0:00:55.6]} 38. Qc3 {[%clk 0:00:16.4]} 38... Qa7 {[%clk
0:00:52.9]} 39. Qe3 {[%clk 0:00:15.9]} 39... Qb7 {[%clk 0:00:49.5]} 40. Qb3
{[%clk 0:00:15.6]} 40... Qa8 {[%clk 0:00:43.1]} 41. Bb1 {[%clk 0:00:14.5]} 41...
Bxb1 {[%clk 0:00:42.4]} 42. Qxb1+ {[%clk 0:00:15.4]} 42... Kh8 {[%clk 0:00:43]}
43. Qd3 {[%clk 0:00:14.2]} 43... Qa7 {[%clk 0:00:42.2]} 44. Qe3 {[%clk
0:00:14.2]} 44... Qa4 {[%clk 0:00:39.6]} 45. Qf3 {[%clk 0:00:14.4]} 45... Kg8
{[%clk 0:00:38]} 46. Kg2 {[%clk 0:00:15.3]} 46... Kh8 {[%clk 0:00:37.9]} 47. g4
{[%clk 0:00:14.5]} 47... Kg8 {[%clk 0:00:37.3]} 48. h5 {[%clk 0:00:14.8]} 48...
Kf7 {[%clk 0:00:37]} 49. Qd5+ {[%clk 0:00:14.2]} 49... Kf8 {[%clk 0:00:36.9]}
50. Qc5+ {[%clk 0:00:12.7]} 50... Kg8 {[%clk 0:00:37]} 51. Qc8+ {[%clk
0:00:11.8]} 51... Kh7 {[%clk 0:00:36.5]} 52. Qf5+ {[%clk 0:00:11.2]} 52... Kg8
{[%clk 0:00:36.9]} 53. Qf3 {[%clk 0:00:11]} 53... Kh8 {[%clk 0:00:36.3]} 54. Kg3
{[%clk 0:00:11.2]} 54... Qd4 {[%clk 0:00:35.2]} 55. Qe3 {[%clk 0:00:09.9]} 55...
Qd6+ {[%clk 0:00:35]} 56. Kh3 {[%clk 0:00:10.3]} 56... Kh7 {[%clk 0:00:33.9]}
57. Qe4+ {[%clk 0:00:10.4]} 57... Kh8 {[%clk 0:00:34]} 58. Qe3 {[%clk
0:00:10.1]} 58... Qa6 {[%clk 0:00:33.6]} 59. Kg2 {[%clk 0:00:09.6]} 59... Qb7+
{[%clk 0:00:33.1]} 60. Qf3 {[%clk 0:00:09.8]} 60... Qa6 {[%clk 0:00:34]} 61. Qe3
{[%clk 0:00:07.1]} 61... Qb7+ {[%clk 0:00:34]} 62. Kg3 {[%clk 0:00:07.2]} 62...
Qa6 {[%clk 0:00:34.9]} 63. f3 {[%clk 0:00:07.5]} 63... Qa8 {[%clk 0:00:33.5]}
64. Qb3 {[%clk 0:00:06.7]} 64... Qd8 {[%clk 0:00:32.2]} 65. a4 {[%clk
0:00:06.3]} 65... Qd6+ {[%clk 0:00:32.2]} 66. Kh3 {[%clk 0:00:05.8]} 66... Qc5
{[%clk 0:00:29.2]} 67. Qb8+ {[%clk 0:00:05.8]} 67... Kh7 {[%clk 0:00:29.1]} 68.
Qb1+ {[%clk 0:00:06.7]} 68... Kh8 {[%clk 0:00:29.4]} 69. Qa1 {[%clk 0:00:07]}
69... Qf2 {[%clk 0:00:28.3]} 70. Qc3 {[%clk 0:00:06.7]} 70... Qf1+ {[%clk
0:00:27.9]} 71. Kg3 {[%clk 0:00:07.1]} 71... Qg1+ {[%clk 0:00:28]} 72. Kf4
{[%clk 0:00:07.6]} 72... Qh2+ {[%clk 0:00:27.3]} 73. Kf5 {[%clk 0:00:07.1]}
73... Qd6 {[%clk 0:00:25.7]} 74. Qc8+ {[%clk 0:00:04.4]} 74... Kh7 {[%clk
0:00:25.7]} 75. Qc3 {[%clk 0:00:04.4]} 75... Qd7+ {[%clk 0:00:24.5]} 76. Kf4
{[%clk 0:00:04.6]} 76... Qxa4+ {[%clk 0:00:25]} 77. Kg3 {[%clk 0:00:04.4]} 77...
Qd7 {[%clk 0:00:25.4]} 78. Qe3 {[%clk 0:00:04.5]} 78... Qd6+ {[%clk 0:00:25.7]}
79. Qf4 {[%clk 0:00:05]} 79... Qd5 {[%clk 0:00:26.3]} 80. Qe3 {[%clk 0:00:04.3]}
80... Qd6+ {[%clk 0:00:26.5]} 81. Qf4 {[%clk 0:00:04.8]} 81... Qd7 {[%clk
0:00:25.6]} 82. Qe4+ {[%clk 0:00:05.2]} 82... Kg8 {[%clk 0:00:25.5]} 83. Qa8+
{[%clk 0:00:06]} 83... Kf7 {[%clk 0:00:25.4]} 84. Qa2+ {[%clk 0:00:05.8]} 84...
Kf8 {[%clk 0:00:23.3]} 85. Qa8+ {[%clk 0:00:06]} 85... Kf7 {[%clk 0:00:23.5]}
86. Qa2+ {[%clk 0:00:05.8]} 86... Qe6 {[%clk 0:00:23.5]} 87. Qa7+ {[%clk
0:00:05.9]} 87... Kg8 {[%clk 0:00:23.5]} 88. Qa8+ {[%clk 0:00:05.4]} 88... Kf7
{[%clk 0:00:23.8]} 89. Qb7+ {[%clk 0:00:05.3]} 89... Kg8 {[%clk 0:00:24.2]} 90.
Qb8+ {[%clk 0:00:05.4]} 90... Kf7 {[%clk 0:00:24.6]} 91. Qc7+ {[%clk 0:00:05.6]}
91... Kg8 {[%clk 0:00:25.1]} 92. Qd8+ {[%clk 0:00:05.8]} 92... Kh7 {[%clk
0:00:24.2]} 93. Qd3+ {[%clk 0:00:05.9]} 93... Kg8 {[%clk 0:00:23.7]} 94. Qd8+
{[%clk 0:00:06.1]} 94... Kh7 {[%clk 0:00:23.7]} 95. Qd3+ {[%clk 0:00:06]} 95...
Kg8 {[%clk 0:00:24.2]} 96. Qd8+ {[%clk 0:00:06]} 1/2-1/2

[Event "Late-Titled-Tuesday-Blitz-March-05-2024"]
[Site "Chess.com"]
[Date "2024.03.05"]
[Round "6"]
[White "lefonghua"]
[Black "DonJuan_34"]
[Result "1/2-1/2"]
[WhiteElo "2607"]
[BlackElo "2472"]
[TimeControl "180+1"]
[EndTime "15:07:18 PST"]
[Termination "Game drawn by stalemate"]

1. d4 {[%clk 0:03:00.9]} 1... Nf6 {[%clk 0:02:58.3]} 2. c4 {[%clk 0:03:01.2]}
2... g6 {[%clk 0:02:58.2]} 3. Nc3 {[%clk 0:03:01.6]} 3... Bg7 {[%clk 0:02:56.6]}
4. e4 {[%clk 0:03:01.9]} 4... O-O {[%clk 0:02:56.7]} 5. f4 {[%clk 0:03:02.3]}
5... d6 {[%clk 0:02:57.3]} 6. Nf3 {[%clk 0:03:02.7]} 6... c5 {[%clk 0:02:55.2]}
7. d5 {[%clk 0:03:03.2]} 7... e6 {[%clk 0:02:55.2]} 8. Be2 {[%clk 0:03:03.8]}
8... exd5 {[%clk 0:02:55.1]} 9. cxd5 {[%clk 0:03:04.7]} 9... Re8 {[%clk
0:02:53.8]} 10. Nd2 {[%clk 0:03:04.7]} 10... Nbd7 {[%clk 0:02:52]} 11. O-O
{[%clk 0:03:04.3]} 11... a6 {[%clk 0:02:52.1]} 12. a4 {[%clk 0:03:04.4]} 12...
Rb8 {[%clk 0:02:49.4]} 13. Kh1 {[%clk 0:03:04.8]} 13... Nf8 {[%clk 0:02:46.5]}
14. h3 {[%clk 0:02:50.5]} 14... Qc7 {[%clk 0:02:43.8]} 15. e5 {[%clk 0:02:46.1]}
15... dxe5 {[%clk 0:02:41.3]} 16. Nc4 {[%clk 0:02:46.6]} 16... b5 {[%clk
0:02:31.7]} 17. axb5 {[%clk 0:02:44.8]} 17... axb5 {[%clk 0:02:31.3]} 18. Nxe5
{[%clk 0:02:37.1]} 18... c4 {[%clk 0:02:21.5]} 19. Be3 {[%clk 0:02:29.2]} 19...
Bd7 {[%clk 0:02:15.2]} 20. d6 {[%clk 0:02:18.9]} 20... Qc8 {[%clk 0:02:06.4]}
21. Kh2 {[%clk 0:02:09.2]} 21... b4 {[%clk 0:01:47.9]} 22. Na4 {[%clk 0:01:55]}
22... Bxa4 {[%clk 0:01:41.9]} 23. Rxa4 {[%clk 0:01:51.1]} 23... N6d7 {[%clk
0:01:09.2]} 24. Nxc4 {[%clk 0:01:39.1]} 24... Bxb2 {[%clk 0:01:08.2]} 25. Ba7
{[%clk 0:01:34.3]} 25... Bc3 {[%clk 0:01:03]} 26. Bxb8 {[%clk 0:01:33.1]} 26...
Qxb8 {[%clk 0:01:03.2]} 27. Bf3 {[%clk 0:01:28.8]} 27... Qb5 {[%clk 0:00:59.4]}
28. Na5 {[%clk 0:01:06.7]} 28... Bd2 {[%clk 0:00:39.4]} 29. Bc6 {[%clk
0:00:59.3]} 29... Qd3 {[%clk 0:00:38.4]} 30. Rxb4 {[%clk 0:00:46]} 30... Qxd6
{[%clk 0:00:24.8]} 31. Rc4 {[%clk 0:00:39.7]} 31... Rc8 {[%clk 0:00:13.1]} 32.
Qf3 {[%clk 0:00:36.8]} 32... Bxa5 {[%clk 0:00:10.5]} 33. Rd1 {[%clk 0:00:32.7]}
33... Qe7 {[%clk 0:00:10.4]} 34. Re4 {[%clk 0:00:29.5]} 34... Qd8 {[%clk
0:00:08.7]} 35. Red4 {[%clk 0:00:29.2]} 35... Rc7 {[%clk 0:00:08.4]} 36. Qd5
{[%clk 0:00:27.2]} 36... Bb6 {[%clk 0:00:08.3]} 37. R4d3 {[%clk 0:00:27.6]}
37... Qb8 {[%clk 0:00:07]} 38. Bb5 {[%clk 0:00:22.5]} 38... Nc5 {[%clk
0:00:06.8]} 39. R3d2 {[%clk 0:00:22]} 39... Re7 {[%clk 0:00:07]} 40. Bc4 {[%clk
0:00:21.7]} 40... Qxf4+ {[%clk 0:00:06.9]} 41. Kh1 {[%clk 0:00:22.1]} 41... Qe4
{[%clk 0:00:07.1]} 42. Rb2 {[%clk 0:00:16.3]} 42... Qxd5 {[%clk 0:00:07]} 43.
Bxd5 {[%clk 0:00:16.9]} 43... Bc7 {[%clk 0:00:06.6]} 44. Rc2 {[%clk 0:00:17.3]}
44... Bb6 {[%clk 0:00:06.2]} 45. Rf1 {[%clk 0:00:17.2]} 45... Ne4 {[%clk
0:00:05.7]} 46. Bxe4 {[%clk 0:00:15.7]} 46... Rxe4 {[%clk 0:00:05.8]} 47. Rc8
{[%clk 0:00:16.1]} 47... Re7 {[%clk 0:00:05.5]} 48. Rb8 {[%clk 0:00:15.9]} 48...
Bd4 {[%clk 0:00:05.5]} 49. Rd8 {[%clk 0:00:16]} 49... Bg7 {[%clk 0:00:06]} 50.
Ra8 {[%clk 0:00:15.7]} 50... h5 {[%clk 0:00:06.6]} 51. Rd1 {[%clk 0:00:14]}
51... Kh7 {[%clk 0:00:06.9]} 52. Kg1 {[%clk 0:00:14.5]} 52... Ne6 {[%clk
0:00:07]} 53. Kf1 {[%clk 0:00:14.3]} 53... Nd4 {[%clk 0:00:06.7]} 54. Rd8 {[%clk
0:00:13.7]} 54... Re4 {[%clk 0:00:06.5]} 55. Rd7 {[%clk 0:00:13.4]} 55... Rf4+
{[%clk 0:00:06.8]} 56. Kg1 {[%clk 0:00:13.7]} 56... Ne6 {[%clk 0:00:06.5]} 57.
Rf1 {[%clk 0:00:13.4]} 57... Rxf1+ {[%clk 0:00:06.4]} 58. Kxf1 {[%clk
0:00:14.3]} 58... f5 {[%clk 0:00:06.3]} 59. Re7 {[%clk 0:00:14.3]} 59... Ng5
{[%clk 0:00:06]} 60. Ke2 {[%clk 0:00:13.3]} 60... Ne4 {[%clk 0:00:06.4]} 61. Kf3
{[%clk 0:00:12.9]} 61... Kh6 {[%clk 0:00:06.9]} 62. Rb7 {[%clk 0:00:12.8]} 62...
h4 {[%clk 0:00:06.9]} 63. Rb6 {[%clk 0:00:12.1]} 63... Bf6 {[%clk 0:00:07.1]}
64. Ra6 {[%clk 0:00:12]} 64... Kg5 {[%clk 0:00:07.4]} 65. Ra8 {[%clk 0:00:11.7]}
65... Be5 {[%clk 0:00:07.5]} 66. Re8 {[%clk 0:00:11.1]} 66... Bg3 {[%clk
0:00:07.7]} 67. Rg8 {[%clk 0:00:10.3]} 67... Nf6 {[%clk 0:00:07.9]} 68. Ra8
{[%clk 0:00:10.2]} 68... Nd5 {[%clk 0:00:08]} 69. Rd8 {[%clk 0:00:08.6]} 69...
Ne7 {[%clk 0:00:08]} 70. Re8 {[%clk 0:00:08.5]} 70... Nc6 {[%clk 0:00:08.2]} 71.
Rc8 {[%clk 0:00:08.7]} 71... Ne5+ {[%clk 0:00:08.2]} 72. Ke2 {[%clk 0:00:08.8]}
72... Kf4 {[%clk 0:00:08]} 73. Kf1 {[%clk 0:00:09.1]} 73... g5 {[%clk
0:00:08.2]} 74. Ra8 {[%clk 0:00:09.1]} 74... g4 {[%clk 0:00:08.2]} 75. Ra4+
{[%clk 0:00:09.2]} 75... Kg5 {[%clk 0:00:08.6]} 76. hxg4 {[%clk 0:00:09.8]}
76... Nxg4 {[%clk 0:00:08.3]} 77. Ra5 {[%clk 0:00:09.9]} 77... Ne3+ {[%clk
0:00:08.1]} 78. Kg1 {[%clk 0:00:10.3]} 78... Kg4 {[%clk 0:00:08.2]} 79. Kh1
{[%clk 0:00:10.7]} 79... f4 {[%clk 0:00:07.8]} 80. Ra8 {[%clk 0:00:10.8]} 80...
Nf5 {[%clk 0:00:07.9]} 81. Rg8+ {[%clk 0:00:10.9]} 81... Kh5 {[%clk 0:00:08.5]}
82. Rh8+ {[%clk 0:00:11.2]} 82... Kg5 {[%clk 0:00:09]} 83. Rg8+ {[%clk
0:00:11.9]} 83... Kf6 {[%clk 0:00:09.4]} 84. Rf8+ {[%clk 0:00:12.4]} 84... Ke5
{[%clk 0:00:09.8]} 85. Re8+ {[%clk 0:00:13]} 85... Kd4 {[%clk 0:00:09.9]} 86.
Rf8 {[%clk 0:00:13.5]} 86... Ke4 {[%clk 0:00:10.2]} 87. Re8+ {[%clk 0:00:13.9]}
87... Kd3 {[%clk 0:00:10.5]} 88. Rf8 {[%clk 0:00:14.6]} 88... Nd4 {[%clk
0:00:10.4]} 89. Rd8 {[%clk 0:00:14.9]} 89... Ke3 {[%clk 0:00:09.9]} 90. Re8+
{[%clk 0:00:15.4]} 90... Kf2 {[%clk 0:00:09.3]} 91. Ra8 {[%clk 0:00:16.1]} 91...
Ne2 {[%clk 0:00:09.4]} 92. Ra2 {[%clk 0:00:16.1]} 92... f3 {[%clk 0:00:09.3]}
93. gxf3 {[%clk 0:00:16]} 93... Kxf3 {[%clk 0:00:09.2]} 94. Rxe2 {[%clk
0:00:15.9]} 94... Kxe2 {[%clk 0:00:08.6]} 95. Kg1 {[%clk 0:00:16.8]} 95... Ke3
{[%clk 0:00:08.8]} 96. Kh1 {[%clk 0:00:17.7]} 96... Kf3 {[%clk 0:00:09.1]} 97.
Kg1 {[%clk 0:00:18.6]} 97... h3 {[%clk 0:00:09.6]} 98. Kh1 {[%clk 0:00:19.5]}
98... h2 {[%clk 0:00:10.5]} 1/2-1/2